bitfinex/quotes_BTCUSD_20230905
["timestamp","ask_amount","ask_price","bid_price","bid_amount"]
[1693899917677,0.048,25726.0,25725.0,1.25498]
[1693899918092,0.024,25726.0,25725.0,1.25298]
[1693899918713,0.048,25726.0,25725.0,1.25498]
[1693899918889,0.048,25726.0,25725.0,1.25298]
[1693899918890,0.024,25726.0,25725.0,1.25298]
[1693899919316,0.024,25726.0,25725.0,1.83607]
[1693899919948,0.2524,25728.0,25725.0,1.83407]
[1693899920157,0.43735982,25729.0,25727.0,0.0848]
[1693899920369,0.28045982,25729.0,25728.0,0.0848]
[1693899920568,0.44575982,25729.0,25728.0,0.0848]
[1693899920808,0.24930432,25730.0,25728.0,0.0848]
[1693899921009,0.24242246,25728.0,25726.0,1.250912]
[1693899921240,0.24930432,25730.0,25725.0,0.0868]
[1693899921241,0.23575328,25726.0,25725.0,0.0868]
[1693899921477,0.23575328,25726.0,25725.0,0.0848]
[1693899922341,0.23575328,25726.0,25725.0,0.66789]
[1693899922925,0.23575328,25726.0,25725.0,0.0848]
[1693899923726,0.25975328,25726.0,25725.0,0.0868]
[1693899923969,0.048,25726.0,25725.0,1.25498]
[1693899924170,0.048,25726.0,25725.0,1.83807]
[1693899927424,0.048,25726.0,25725.0,1.25498]
[1693899927663,0.31906378,25726.0,25725.0,1.25498]
[1693899928038,0.31906378,25726.0,25725.0,0.67189]
[1693899930652,0.048,25726.0,25725.0,1.25498]
[1693899930862,0.048,25726.0,25725.0,1.83807]
[1693899931076,0.048,25726.0,25725.0,1.25498]
[1693899931954,0.048,25726.0,25725.0,1.83807]
[1693899932555,0.048,25726.0,25725.0,1.25498]
[1693899932766,0.048,25726.0,25725.0,0.67189]
[1693899935539,0.27135097,25726.0,25725.0,0.0888]
[1693899937208,0.048,25726.0,25725.0,1.25498]
[1693899960345,0.14123825,25726.0,25725.0,1.25498]
[1693899977775,0.14123825,25726.0,25725.0,1.83807]
[1693899979228,0.14123825,25726.0,25725.0,1.25498]
[1693899980191,0.14123825,25726.0,25725.0,1.83807]
[1693899982220,0.14123825,25726.0,25725.0,0.67189]
[1693899982399,0.14123825,25726.0,25725.0,0.0888]
[1693899982962,0.14123825,25726.0,25725.0,0.67189]
[1693899984323,0.43849861,25726.0,25725.0,0.004]
[1693899986596,0.57835599,25726.0,25725.0,0.004]
[1693899986799,0.43849861,25726.0,25725.0,0.004]
[1693899987181,0.57835599,25726.0,25725.0,0.004]
[1693899990870,0.43849861,25726.0,25725.0,0.004]
[1693899991236,0.14123825,25726.0,25725.0,1.25498]
[1693899992891,0.14123825,25726.0,25725.0,1.24998]
[1693900000461,0.14123825,25726.0,25725.0,0.0838]
[1693900012007,0.048,25726.0,25725.0,0.0838]
[1693900020374,0.26509852,25726.0,25725.0,0.0838]
[1693900029932,0.048,25726.0,25725.0,0.0838]
[1693900031543,0.048,25726.0,25725.0,1.24998]
[1693900049675,0.048,25726.0,25725.0,1.83307]
[1693900053888,0.024,25726.0,25725.0,1.83307]
[1693900054156,0.25983825,25729.0,25725.0,1.83307]
[1693900054367,0.09323825,25729.0,25727.0,0.0848]
[1693900054576,0.09323825,25729.0,25728.0,1.166044]
[1693900056194,0.14023825,25729.0,25728.0,1.166044]
[1693900056395,0.11623825,25729.0,25728.0,1.166044]
[1693900056602,0.11628966,25729.0,25728.0,1.166044]
[1693900056799,0.14028966,25729.0,25728.0,1.168044]
[1693900057264,0.11728966,25729.0,25728.0,1.168044]
[1693900058134,0.14128966,25729.0,25728.0,1.170044]
[1693900060858,0.048,25729.0,25728.0,1.170044]
[1693900061262,0.048,25729.0,25728.0,1.753066]
[1693900068734,0.048,25729.0,25728.0,1.837866]
[1693900069395,0.024,25729.0,25728.0,1.835866]
[1693900069597,0.00020432,25730.0,25728.0,1.833866]
[1693900069802,0.034,25729.0,25728.0,1.752066]
[1693900070013,0.034,25729.0,25728.0,1.836866]
[1693900070232,0.00020432,25730.0,25728.0,1.833866]
[1693900070405,0.012,25729.0,25728.0,1.750066]
[1693900070616,0.012,25729.0,25728.0,1.834866]
[1693900071567,0.017,25729.0,25728.0,1.835866]
[1693900076545,0.017,25729.0,25728.0,2.22251127]
[1693900076977,0.017,25729.0,25728.0,2.29629554]
[1693900077858,0.017,25729.0,25728.0,2.38109554]
[1693900089621,0.017,25729.0,25728.0,2.68109554]
[1693900089827,0.017,25729.0,25728.0,2.72000554]
[1693900090867,0.012,25729.0,25728.0,2.71900554]
[1693900091276,0.013,25729.0,25728.0,2.73100554]
[1693900091671,0.00020432,25730.0,25728.0,2.71800554]
[1693900091884,0.00020432,25730.0,25729.0,0.77144527]
[1693900092100,0.00020432,25730.0,25729.0,2.59422275]
[1693900092945,0.00020432,25730.0,25729.0,2.52044227]
[1693900093150,0.00320432,25730.0,25729.0,2.52044227]
[1693900093780,0.00420432,25730.0,25729.0,2.52044227]
[1693900094224,0.00320432,25730.0,25729.0,2.52044227]
[1693900094437,0.00320432,25730.0,25729.0,2.52444227]
[1693900108889,0.00320432,25730.0,25729.0,4.01384227]
[1693900109107,0.00320432,25730.0,25729.0,4.45532067]
[1693900109298,0.00320432,25730.0,25729.0,4.7512943]
[1693900109472,0.00320432,25730.0,25729.0,4.75127681]
[1693900109675,0.00320432,25730.0,25729.0,4.75289681]
[1693900109887,0.00320432,25730.0,25729.0,4.65678694]
[1693900110086,0.00320432,25730.0,25729.0,4.85982166]
[1693900110265,0.00320432,25730.0,25729.0,4.85892166]
[1693900110464,0.00520432,25730.0,25729.0,4.69172694]
[1693900110664,0.00520432,25730.0,25729.0,4.69190694]
[1693900110863,0.00520432,25730.0,25729.0,4.87820166]
[1693900111089,0.00520432,25730.0,25729.0,4.87478166]
[1693900111293,0.00220432,25730.0,25729.0,4.89806166]
[1693900111532,0.00220432,25730.0,25729.0,4.87010166]
[1693900111653,0.00420432,25730.0,25729.0,4.70454694]
[1693900111849,0.00420432,25730.0,25729.0,4.89096166]
[1693900112059,0.00020432,25730.0,25729.0,4.84860166]
[1693900112278,0.00420432,25730.0,25729.0,4.89904166]
[1693900112479,0.00420432,25730.0,25729.0,4.72462694]
[1693900112684,0.00220432,25730.0,25729.0,4.70026694]
[1693900112891,0.00220432,25730.0,25729.0,4.70020694]
[1693900113108,0.0196,25732.0,25731.0,0.62831]
[1693900113314,0.0196,25732.0,25731.0,4.70452527]
[1693900113566,0.0196,25732.0,25731.0,5.90191927]
[1693900113767,0.0196,25732.0,25731.0,5.90431927]
[1693900113976,0.0196,25732.0,25731.0,5.90509927]
[1693900114184,0.0196,25732.0,25731.0,6.06015527]
[1693900114389,0.0196,25735.0,25733.0,0.50831]
[1693900114625,0.0196,25735.0,25734.0,4.09527527]
[1693900115491,0.0196,25735.0,25734.0,3.68587527]
[1693900115861,0.0226,25735.0,25734.0,3.68587527]
[1693900116811,0.0226,25735.0,25734.0,3.68887527]
[1693900117014,0.0226,25735.0,25734.0,3.496525]
[1693900118089,0.0226,25735.0,25734.0,3.69082]
[1693900119218,0.0226,25735.0,25734.0,3.885115]
[1693900121574,0.0226,25735.0,25734.0,4.07941]
[1693900123872,0.0226,25735.0,25734.0,4.273705]
[1693900126244,0.0226,25735.0,25734.0,3.97003069]
[1693900128457,0.0226,25735.0,25734.0,4.270705]
[1693900128877,0.0226,25735.0,25734.0,4.30202228]
[1693900135594,0.0226,25735.0,25734.0,3.52484128]
[1693900135859,0.0226,25735.0,25734.0,4.30202228]
[1693900138416,0.0226,25735.0,25734.0,5.4219581]
[1693900139272,0.0226,25735.0,25734.0,4.6447771]
[1693900139494,0.31219772,25735.0,25734.0,2.36286028]
[1693900139680,0.31219772,25735.0,25734.0,0.80849828]
[1693900139881,0.31219772,25735.0,25734.0,0.03131728]
[1693900140084,0.32562012,25735.0,25734.0,0.03131728]
[1693900140293,0.32562012,25735.0,25733.0,2.331585]
[1693900140432,0.32562012,25735.0,25733.0,2.370495]
[1693900141059,0.2674148,25734.0,25733.0,2.370495]
[1693900141475,0.2674148,25734.0,25733.0,2.388495]
[1693900141866,0.2674148,25734.0,25733.0,2.377495]
[1693900142314,0.2684148,25734.0,25733.0,2.388495]
[1693900142976,0.2684148,25734.0,25733.0,1.6113]
[1693900143182,0.2684148,25734.0,25733.0,1.6043]
[1693900143692,0.2694148,25734.0,25733.0,1.6113]
[1693900149860,0.2694148,25734.0,25733.0,0.816105]
[1693900151862,0.2694148,25734.0,25733.0,0.03891]
[1693900152064,0.28282902,25734.0,25733.0,0.03891]
[1693900153482,0.28282902,25734.0,25732.0,0.03891]
[1693900153679,0.37597884,25734.0,25733.0,0.03891]
[1693900153891,0.28282902,25734.0,25733.0,0.03891]
[1693900154108,2.79360249,25734.0,25729.0,0.777318]
[1693900154342,0.09319906,25732.0,25728.0,0.03891]
[1693900154600,0.27601574,25731.0,25728.0,0.03891]
[1693900154780,1.05329074,25731.0,25728.0,0.03891]
[1693900155645,1.05329074,25731.0,25728.0,0.04891]
[1693900156085,0.38664527,25730.0,25728.0,0.03891]
[1693900156286,0.38664527,25730.0,25729.0,0.017]
[1693900156491,0.38664527,25730.0,25728.0,0.04891]
[1693900156895,0.38664527,25730.0,25728.0,0.05491]
[1693900157109,0.22770257,25729.0,25728.0,0.04891]
[1693900157315,0.61434784,25729.0,25728.0,0.826272]
[1693900157516,0.22770257,25729.0,25728.0,1.593635]
[1693900157918,0.22770257,25729.0,25728.0,1.609635]
[1693900158343,0.22770257,25729.0,25728.0,1.599635]
[1693900158760,0.22870257,25729.0,25728.0,1.609635]
[1693900158962,0.22870257,25729.0,25728.0,1.570726]
[1693900159165,0.22870257,25729.0,25728.0,0.832273]
[1693900159369,0.22870257,25729.0,25728.0,0.826273]
[1693900159580,0.38864527,25729.0,25728.0,0.05491]
[1693900159783,1.94330927,25729.0,25728.0,0.016]
[1693900160575,1.94330927,25729.0,25728.0,0.006]
[1693900160576,1.94230927,25729.0,25728.0,0.006]
[1693900160773,1.94130927,25729.0,25725.0,0.03891]
[1693900160982,2.569596,25729.0,25728.0,0.001]
[1693900161187,2.581596,25729.0,25728.0,0.002]
[1693900161390,2.581596,25729.0,25724.0,1.39249256]
[1693900161610,0.22716291,25728.0,25724.0,0.96399043]
[1693900161812,1.00453391,25728.0,25725.0,0.03891]
[1693900162453,0.25134309,25727.0,25725.0,0.03891]
[1693900162668,0.25134309,25727.0,25724.0,1.39581952]
[1693900162877,0.25134309,25727.0,25725.0,0.03891]
[1693900163279,0.25134309,25727.0,25725.0,0.04291]
[1693900163654,0.25134309,25727.0,25725.0,0.03891]
[1693900163872,0.25334309,25727.0,25725.0,0.03891]
[1693900164373,0.25134309,25727.0,25725.0,0.816358]
[1693900164951,0.25234309,25727.0,25725.0,0.826358]
[1693900165176,0.001,25727.0,25725.0,0.826358]
[1693900165380,0.001,25727.0,25725.0,2.466064]
[1693900165534,0.002,25727.0,25725.0,2.470064]
[1693900173850,0.28831027,25727.0,25725.0,1.607811]
[1693900178305,0.28831027,25727.0,25725.0,2.385264]
[1693900180422,0.002,25727.0,25725.0,2.470064]
[1693900181430,0.002,25727.0,25726.0,0.0848]
[1693900181661,0.002,25727.0,25726.0,2.417069]
[1693900182368,0.31023129,25730.0,25726.0,2.417069]
[1693900182578,0.002,25727.0,25726.0,2.57372711]
[1693900182774,0.002,25727.0,25726.0,2.419069]
[1693900183767,0.002,25727.0,25726.0,2.418069]
[1693900184128,0.002,25727.0,25726.0,2.419069]
[1693900184536,0.002,25727.0,25726.0,2.418069]
[1693900184937,0.002,25727.0,25726.0,2.419069]
[1693900198024,0.22563945,25727.0,25726.0,2.419069]
[1693900202494,0.002,25727.0,25726.0,2.419069]
[1693900202901,0.002,25727.0,25726.0,2.609069]
[1693900206425,0.25193021,25727.0,25726.0,0.969423]
[1693900206843,0.25193021,25727.0,25726.0,1.746846]
[1693900209525,0.25193021,25727.0,25726.0,0.969423]
[1693900211944,0.25193021,25727.0,25726.0,1.746846]
[1693900212297,0.25193021,25727.0,25726.0,0.969423]
[1693900212681,0.25193021,25727.0,25726.0,0.192]
[1693900213203,0.63857548,25727.0,25726.0,0.192]
[1693900214046,0.63857548,25727.0,25726.0,0.969423]
[1693900214218,0.38864527,25727.0,25726.0,0.969423]
[1693900214421,0.38864527,25727.0,25726.0,1.746846]
[1693900214829,0.002,25727.0,25726.0,2.524269]
[1693900217466,0.002,25727.0,25726.0,1.74317]
[1693900218912,0.23345461,25727.0,25726.0,1.74317]
[1693900221125,0.002,25727.0,25726.0,2.520593]
[1693900226637,0.28973845,25727.0,25726.0,2.520593]
[1693900227288,0.28973845,25727.0,25726.0,1.74317]
[1693900230543,0.28973845,25727.0,25726.0,0.965747]
[1693900232357,0.28973845,25727.0,25726.0,0.188324]
[1693900236287,0.28973845,25727.0,25726.0,0.965747]
[1693900243205,0.28973845,25727.0,25726.0,1.74317]
[1693900244767,0.1865887,25727.0,25726.0,1.74317]
[1693900246665,0.1865887,25727.0,25726.0,0.965747]
[1693900254681,0.09319906,25728.0,25726.0,0.965747]
[1693900254885,0.38664527,25728.0,25726.0,1.74317]
[1693900256871,0.38864527,25728.0,25726.0,1.74417]
[1693900257299,0.38864527,25728.0,25726.0,1.74517]
[1693900257696,0.60615651,25728.0,25726.0,1.74517]
[1693900258114,0.60615651,25728.0,25726.0,2.522593]
[1693900258314,0.21951124,25728.0,25726.0,2.522593]
[1693900258971,0.002,25728.0,25726.0,2.522593]
[1693900259181,0.002,25728.0,25727.0,0.0848]
[1693900259380,0.002,25728.0,25727.0,2.416979]
[1693900259585,0.002,25728.0,25727.0,2.716979]
[1693900260217,0.09319906,25731.0,25727.0,2.716979]
[1693900260419,0.09319906,25731.0,25729.0,0.0848]
[1693900260572,0.09319906,25731.0,25730.0,3.109208]
[1693900260975,0.13972473,25732.0,25730.0,3.194008]
[1693900260976,0.23292379,25732.0,25730.0,3.194008]
[1693900261183,0.09319906,25732.0,25731.0,0.0848]
[1693900261385,0.23292379,25733.0,25731.0,2.416616]
[1693900262358,0.09319906,25733.0,25731.0,2.416616]
[1693900263398,0.11019906,25733.0,25731.0,2.22535326]
[1693900263808,0.02,25732.0,25731.0,2.22635326]
[1693900264039,0.11019906,25733.0,25731.0,2.31015326]
[1693900264478,0.11319906,25733.0,25731.0,2.417616]
[1693900264693,0.09319906,25733.0,25731.0,2.416616]
[1693900264900,0.09319906,25733.0,25731.0,2.419616]
[1693900264901,0.037,25732.0,25731.0,2.419616]
[1693900265344,0.09319906,25733.0,25731.0,2.416616]
[1693900265555,0.11319906,25733.0,25731.0,2.417616]
[1693900265756,0.02,25733.0,25731.0,2.417616]
[1693900266162,0.02,25733.0,25732.0,0.0848]
[1693900266467,0.02,25733.0,25732.0,2.416526]
[1693900266733,0.09319906,25734.0,25732.0,2.416526]
[1693900266934,0.017,25733.0,25732.0,2.331726]
[1693900267143,0.017,25733.0,25732.0,2.416526]
[1693900267351,0.11279906,25735.0,25732.0,2.416526]
[1693900267554,0.024,25733.0,25732.0,2.333726]
[1693900267761,0.024,25733.0,25732.0,2.418526]
[1693900268317,0.024,25733.0,25732.0,2.417526]
[1693900268518,0.024,25733.0,25732.0,2.419526]
[1693900269801,0.0196,25735.0,25732.0,2.416526]
[1693900270018,0.0196,25735.0,25734.0,0.0848]
[1693900270220,0.0196,25735.0,25734.0,2.416343]
[1693900270816,0.0286,25735.0,25734.0,2.416343]
[1693900271293,0.0286,25735.0,25734.0,2.417343]
[1693900271294,0.0436,25735.0,25734.0,2.417343]
[1693900271805,0.0676,25735.0,25734.0,2.419343]
[1693900278730,0.0676,25735.0,25734.0,2.334543]
[1693900279093,0.0676,25735.0,25734.0,2.1413103]
[1693900279496,0.0676,25735.0,25734.0,2.2261103]
[1693900279904,0.0676,25735.0,25734.0,2.419343]
[1693900282247,0.0676,25735.0,25734.0,2.22500919]
[1693900283010,0.0676,25735.0,25734.0,2.25553999]
[1693900283212,0.0676,25735.0,25734.0,2.17073999]
[1693900283414,0.30908089,25735.0,25734.0,2.17073999]
[1693900283602,0.30908089,25735.0,25733.0,0.861991]
[1693900283603,0.31938509,25735.0,25733.0,0.777194]
[1693900283802,0.31938509,25735.0,25733.0,2.331618]
[1693900283997,0.31938509,25735.0,25733.0,2.416418]
[1693900284403,0.29538509,25735.0,25733.0,2.416418]
[1693900284614,0.0196,25735.0,25733.0,2.416418]
[1693900284906,0.0396,25735.0,25733.0,2.417436]
[1693900285089,0.29511756,25734.0,25733.0,2.417436]
[1693900285904,0.29511756,25734.0,25733.0,2.419436]
[1693900286308,0.29511756,25734.0,25733.0,2.416436]
[1693900286714,0.33311756,25734.0,25733.0,2.419436]
[1693900287121,0.33311756,25734.0,25733.0,2.45062935]
[1693900288322,0.33311756,25734.0,25733.0,0.81140535]
[1693900288524,0.33311756,25734.0,25733.0,0.81138535]
[1693900290667,0.33311756,25734.0,25733.0,0.777212]
[1693900291353,0.33311756,25734.0,25733.0,1.554424]
[1693900293330,0.33311756,25734.0,25733.0,2.331636]
[1693900295151,0.038,25734.0,25733.0,2.416436]
[1693900295352,0.038,25734.0,25733.0,1.639224]
[1693900295556,0.038,25734.0,25733.0,2.416436]
[1693900297671,0.038,25734.0,25733.0,2.02794659]
[1693900297871,0.038,25734.0,25733.0,2.416436]
[1693900302609,0.038,25734.0,25733.0,2.331636]
[1693900302930,0.038,25734.0,25733.0,2.36304409]
[1693900303264,0.038,25734.0,25733.0,2.44784409]
[1693900305813,0.04973394,25734.0,25733.0,2.44784409]
[1693900307171,0.04973394,25734.0,25733.0,1.67063209]
[1693900307486,0.04973394,25734.0,25733.0,2.44784409]
[1693900310871,0.04973394,25734.0,25733.0,2.331636]
[1693900312183,0.04973394,25734.0,25733.0,2.36296942]
[1693900313238,0.04973394,25734.0,25733.0,2.44776942]
[1693900315402,0.04973394,25734.0,25733.0,1.67055742]
[1693900315604,0.04973394,25734.0,25733.0,2.44776942]
[1693900316838,0.04973394,25734.0,25733.0,2.83441469]
[1693900317020,0.038,25734.0,25733.0,4.33438599]
[1693900317426,0.038,25734.0,25733.0,4.37329599]
[1693900317834,0.02,25734.0,25733.0,4.37329599]
[1693900318062,0.0196,25735.0,25733.0,4.37329599]
[1693900318266,0.001,25734.0,25733.0,3.16852469]
[1693900318446,0.002,25734.0,25733.0,4.38024783]
[1693900318702,0.001,25734.0,25733.0,4.37324783]
[1693900319120,0.001,25734.0,25733.0,4.38024783]
[1693900320504,0.002,25734.0,25733.0,4.38924783]
[1693900321927,0.27289479,25734.0,25733.0,2.88267942]
[1693900322723,0.002,25734.0,25733.0,2.88267942]
[1693900322929,0.002,25734.0,25733.0,3.26932469]
[1693900323069,0.002,25734.0,25733.0,4.38928205]
[1693900324955,0.002,25734.0,25733.0,4.30928205]
[1693900325162,0.002,25734.0,25733.0,4.38928205]
[1693900326455,0.002,25734.0,25733.0,3.26932469]
[1693900326858,0.002,25734.0,25733.0,4.38928343]
[1693900327871,0.002,25734.0,25733.0,3.26932469]
[1693900328911,0.2770827,25734.0,25733.0,2.88267942]
[1693900330637,0.002,25734.0,25733.0,2.88267942]
[1693900332698,0.002,25734.0,25733.0,2.86267942]
[1693900336007,0.002,25734.0,25733.0,3.98263295]
[1693900336203,0.002,25734.0,25733.0,2.86267942]
[1693900343675,0.002,25734.0,25733.0,2.80267942]
[1693900343873,0.002,25734.0,25733.0,2.86267942]
[1693900346729,0.002,25734.0,25733.0,2.84267942]
[1693900347426,0.002,25734.0,25733.0,2.80267942]
[1693900347569,0.002,25734.0,25733.0,2.84267942]
[1693900351728,0.002,25734.0,25733.0,3.03267942]
[1693900352354,0.23373464,25734.0,25733.0,2.90787942]
[1693900367613,0.002,25734.0,25733.0,2.90787942]
[1693900367827,0.002,25734.0,25733.0,2.99267942]
[1693900390434,0.002,25734.0,25733.0,3.01267942]
[1693900391283,0.002,25734.0,25733.0,2.981346]
[1693900399180,0.22461258,25734.0,25733.0,2.961346]
[1693900401295,0.002,25734.0,25733.0,2.961346]
[1693900422437,0.21519218,25734.0,25733.0,2.876546]
[1693900422590,0.21519218,25734.0,25733.0,2.099334]
[1693900422797,0.21519218,25734.0,25733.0,2.576546]
[1693900423393,0.21519218,25734.0,25733.0,1.799334]
[1693900425314,0.21519218,25734.0,25733.0,1.022122]
[1693900425773,0.21519218,25734.0,25733.0,1.799334]
[1693900426697,0.21519218,25734.0,25733.0,2.576546]
[1693900431490,0.21519218,25734.0,25733.0,1.799334]
[1693900432337,0.21519218,25734.0,25733.0,2.576546]
[1693900434173,0.002,25734.0,25733.0,2.576546]
[1693900434382,0.002,25734.0,25733.0,2.661346]
[1693900442364,0.23942945,25734.0,25733.0,2.576546]
[1693900442609,0.23942945,25734.0,25733.0,1.022122]
[1693900442992,0.23942945,25734.0,25733.0,1.799334]
[1693900444375,0.23942945,25734.0,25733.0,1.022122]
[1693900449636,0.23942945,25734.0,25733.0,0.24491]
[1693900451493,0.23942945,25734.0,25733.0,1.022122]
[1693900455330,0.23942945,25734.0,25733.0,1.799334]
[1693900469338,0.33272576,25734.0,25733.0,1.799334]
[1693900469984,0.23942945,25734.0,25733.0,1.799334]
[1693900470439,0.33272576,25734.0,25733.0,1.799334]
[1693900495655,0.33272576,25734.0,25733.0,1.022122]
[1693900496460,0.47267022,25734.0,25733.0,1.022122]
[1693900499873,0.33272576,25734.0,25733.0,1.022122]
[1693900500279,0.47267022,25734.0,25733.0,1.022122]
[1693900500479,0.33272576,25734.0,25733.0,1.022122]
[1693900501479,0.47267022,25734.0,25733.0,1.022122]
[1693900505011,0.33272576,25734.0,25733.0,1.022122]
[1693900507303,0.33272576,25734.0,25733.0,1.799334]
[1693900509469,0.33272576,25734.0,25733.0,2.576546]
[1693900517681,0.33272576,25734.0,25733.0,2.661346]
[1693900519122,0.32973009,25734.0,25733.0,2.661346]
[1693900519688,0.23643378,25734.0,25733.0,2.661346]
[1693900524512,0.23643378,25734.0,25733.0,2.27285659]
[1693900524651,0.23643378,25734.0,25733.0,2.31176659]
[1693900525711,0.23643378,25734.0,25733.0,2.50176659]
[1693900526727,0.23643378,25734.0,25733.0,2.645346]
[1693900528885,0.23643378,25734.0,25733.0,2.25685659]
[1693900529039,0.23643378,25734.0,25733.0,2.645346]
[1693900533034,0.23643378,25734.0,25733.0,2.560546]
[1693900533676,0.23643378,25734.0,25733.0,2.17205659]
[1693900533845,0.23643378,25734.0,25733.0,2.21096659]
[1693900535798,0.23643378,25734.0,25733.0,1.593334]
[1693900536001,0.23643378,25734.0,25733.0,0.03891]
[1693900536220,0.23643378,25734.0,25733.0,0.22891]
[1693900536634,0.32973009,25734.0,25733.0,0.22891]
[1693900537100,0.32973009,25734.0,25732.0,1.39487259]
[1693900537101,0.09329631,25734.0,25732.0,1.39487259]
[1693900537325,0.09329631,25734.0,25733.0,0.03891]
[1693900538064,0.31199088,25734.0,25733.0,0.03891]
[1693900538498,0.31399088,25734.0,25733.0,0.03891]
[1693900539560,0.31399088,25734.0,25732.0,1.562454]
[1693900539771,0.31399088,25734.0,25733.0,0.03891]
[1693900540382,0.31199088,25734.0,25733.0,0.03891]
[1693900540801,0.31299088,25734.0,25733.0,0.008]
[1693900541003,0.31299088,25734.0,25733.0,0.04691]
[1693900543097,0.27548097,25733.0,25731.0,0.777253]
[1693900543307,0.27548097,25733.0,25732.0,0.03891]
[1693900544348,0.27848097,25733.0,25732.0,0.03891]
[1693900544759,0.27748097,25733.0,25732.0,0.03991]
[1693900545161,0.27948097,25733.0,25732.0,0.04091]
[1693900545366,0.27948097,25733.0,25731.0,1.554521]
[1693900545574,0.27948097,25733.0,25732.0,0.03891]
[1693900546406,0.27748097,25733.0,25732.0,0.03891]
[1693900546615,0.28048097,25733.0,25732.0,0.03891]
[1693900547027,0.47048097,25733.0,25732.0,0.03891]
[1693900547227,0.46748097,25733.0,25732.0,0.03891]
[1693900547437,0.46948097,25733.0,25732.0,0.03891]
[1693900547651,0.22281539,25732.0,25731.0,1.51381016]
[1693900547886,0.22281539,25732.0,25731.0,0.03891]
[1693900548100,1.93503462,25733.0,25732.0,0.03891]
[1693900548308,2.39462071,25733.0,25732.0,0.03891]
[1693900548523,3.21650886,25733.0,25732.0,0.03891]
[1693900548941,3.16982188,25733.0,25732.0,0.03891]
[1693900549150,3.40306265,25733.0,25732.0,0.03891]
[1693900549562,3.40106265,25733.0,25732.0,0.03891]
[1693900549985,3.16782188,25733.0,25732.0,0.03891]
[1693900550185,0.003,25732.0,25729.0,0.03891]
[1693900550397,0.0932562,25731.0,25729.0,0.03891]
[1693900551024,0.27941828,25730.0,25729.0,0.03891]
[1693900552069,0.28141828,25730.0,25726.0,1.61240164]
[1693900552274,0.38664527,25729.0,25727.0,0.03891]
[1693900553112,0.38664527,25729.0,25726.0,0.82545312]
[1693900553364,0.38664527,25729.0,25727.0,0.03891]
[1693900553591,0.0848,25728.0,25726.0,0.08877085]
[1693900553823,0.47144527,25727.0,25723.0,0.777501]
[1693900554244,0.72484527,25727.0,25723.0,0.777496]
[1693900554460,0.72484527,25727.0,25722.0,1.555054]
[1693900554894,0.72884527,25727.0,25721.0,1.615136]
[1693900555107,0.72884527,25727.0,25723.0,0.3]
[1693900555530,0.72884527,25727.0,25722.0,0.3]
[1693900555746,0.72484527,25727.0,25722.0,0.3]
[1693900555962,0.72784527,25727.0,25721.0,1.555124]
[1693900556185,0.72984527,25727.0,25721.0,1.555124]
[1693900556389,0.72984527,25727.0,25721.0,1.70978211]
[1693900556390,0.72684527,25727.0,25721.0,1.70978211]
[1693900556799,0.72784527,25727.0,25721.0,2.48735611]
[1693900557216,0.72684527,25727.0,25721.0,2.48735611]
[1693900557421,0.0848,25725.0,25721.0,2.48735611]
[1693900557621,0.64404527,25727.0,25721.0,2.332708]
[1693900557622,0.38664527,25724.0,25721.0,2.332708]
[1693900558565,0.23885604,25723.0,25721.0,2.332708]
[1693900558775,0.23885604,25723.0,25721.0,2.332722]
[1693900559677,0.24085604,25723.0,25721.0,2.332722]
[1693900559870,0.24285604,25723.0,25721.0,2.332722]
[1693900560456,0.004,25723.0,25721.0,2.332722]
[1693900561511,0.002,25723.0,25721.0,2.332722]
[1693900562268,0.004,25723.0,25721.0,2.332722]
[1693900564805,0.004,25723.0,25721.0,3.195096]
[1693900565239,0.004,25723.0,25722.0,0.0848]
[1693900565447,0.004,25723.0,25722.0,2.417432]
[1693900566092,0.002,25723.0,25722.0,2.417432]
[1693900566307,0.003,25723.0,25722.0,2.417432]
[1693900567159,0.001,25723.0,25722.0,2.417432]
[1693900567363,0.191,25723.0,25722.0,2.417432]
[1693900567585,0.192,25723.0,25722.0,2.417432]
[1693900568205,0.167,25723.0,25722.0,2.417432]
[1693900575631,0.167,25723.0,25722.0,3.53780451]
[1693900577627,0.167,25723.0,25722.0,3.56881449]
[1693900578505,0.001,25723.0,25722.0,3.56881449]
[1693900589678,0.161,25723.0,25722.0,3.56881449]
[1693900591470,0.161,25723.0,25722.0,1.23618249]
[1693900621119,0.05577464,25723.0,25722.0,1.23618249]
[1693900622350,0.05577464,25723.0,25722.0,1.32935162]
[1693900628292,0.05577464,25723.0,25722.0,1.71599689]
[1693900629126,0.05527464,25723.0,25722.0,1.71599689]
[1693900630347,0.0932562,25727.0,25722.0,1.71599689]
[1693900630683,0.0932562,25727.0,25725.0,0.0848]
[1693900631427,0.0942562,25727.0,25725.0,0.0848]
[1693900631862,0.0932562,25727.0,25725.0,0.0848]
[1693900632276,0.1142562,25727.0,25725.0,0.0848]
[1693900632477,0.1152562,25727.0,25725.0,0.0848]
[1693900632792,0.1152562,25727.0,25722.0,0.66648249]
[1693900632956,0.2767562,25727.0,25726.0,0.0848]
[1693900633104,0.2977562,25727.0,25726.0,0.0848]
[1693900633311,0.1352562,25727.0,25726.0,0.0848]
[1693900633917,0.0932562,25727.0,25726.0,0.0848]
[1693900634111,0.1172562,25727.0,25726.0,0.0848]
[1693900634491,0.1182562,25727.0,25726.0,0.0848]
[1693900634821,0.1172562,25727.0,25726.0,0.0848]
[1693900635027,0.1412562,25727.0,25726.0,0.0848]
[1693900635232,0.41123162,25727.0,25726.0,0.0848]
[1693900635456,0.41123162,25727.0,25726.0,3.194492]
[1693900639737,0.47123162,25727.0,25726.0,3.194492]
[1693900639912,0.47123162,25727.0,25726.0,3.109692]
[1693900641011,0.47123162,25727.0,25726.0,2.25558488]
[1693900642023,0.47123162,25727.0,25726.0,2.332269]
[1693900642439,0.47123162,25727.0,25726.0,1.554846]
[1693900642639,0.47123162,25727.0,25726.0,2.332269]
[1693900643221,0.47123162,25727.0,25726.0,2.417069]